[Event "1st Bangalore GM-Open-A 2024"]
[Site "Bangalore"]
[Date "2024.01.19"]
[Round "3.8"]
[White "Srihari L"]
[Black "Sammed Jaykumar, Shete"]
[Result "0-1"]
[ECO "C54"]
[WhiteElo "2288"]
[BlackElo "2441"]
[Annotator "RC"]
[PlyCount "136"]
[EventDate "2024.01.20"]
[EventType "swiss"]
[EventCountry "IND"]
[SourceTitle "playchess.com"]
[Source "ChessBase"]
[SourceQuality "1"]
[TimeControl "5400+30"]

1. e4 {[%emt 0:05:47]} e5 {[%emt 0:00:17]} 2. Nf3 {[%emt 0:00:10]} Nc6 {[%emt 0:00:05]} 3. Bc4 {[%emt 0:00:05]} Bc5 {[%emt 0:00:07]} 4. c3 {[%emt 0:00:17]} Nf6 {[%emt 0:00:10]} 5. d3 {[%emt 0:00:04]} d6 {[%emt 0:00:39]} 6. O-O {[%emt 0:00:13]} a5 {[%emt 0:00:15]} 7. Re1 {[%emt 0:00:34]} Ba7 {[%emt 0:00:08]} 8. Na3 {[%emt 0:00:54]} h6 {[%emt 0:00:56]} 9. Nb5 {[%emt 0:03:28]} Bb6 {[%emt 0:01:20]} 10. d4 {[%emt 0:09:13]} O-O {[%emt 0:02:20]} 11. Bd3 {[%emt 0:03:41]} Bg4 {[%emt 0:04:43]} 12. Be3 {[%emt 0:11:18]} d5 {[%emt 0:07:51]} 13. dxe5 {[%emt 0:14:13]} Bxf3 {[%emt 0:06:48]} 14. gxf3 {[%emt 0:02:53]} Nxe5 {[%emt 0:01:52]} 15. Bxb6 {[%emt 0:05:09]} cxb6 {[%emt 0:00:09]} 16. exd5 {[%emt 0:02:22]} Nxd3 {[%emt 0:12:20]} 17. Qxd3 {[%emt 0:00:16]} Nxd5 {[%emt 0:02:56]} 18. Re5 {[%emt 0:04:45]} Nf4 {[%emt 0:01:31]} 19. Qxd8 {[%emt 0:11:10]} Raxd8 {[%emt 0:00:34]} 20. Nd4 {[%emt 0:00:04]} Rd6 {[%emt 0:06:58]} 21. Kf1 {[%emt 0:04:00]} Nd3 {[%emt 0:02:39]} 22. Re2 {[%emt 0:04:58]} Rfd8 {[%emt 0:03:14]} 23. Rd1 {[%emt 0:02:06]} Nf4 {[%emt 0:06:34]} 24. Re7 {[%emt 0:05:49]} Rf6 {[%emt 0:00:10]} 25. Rde1 {[%emt 0:01:15]} Rd5 {[%emt 0:00:09]} 26. Re8+ {[%emt 0:00:36]} Kh7 {[%emt 0:00:07]} 27. R1e5 {[%emt 0:00:13]} Rc5 {[%emt 0:00:14]} 28. a4 {[%emt 0:08:22]} Nd3 {[%emt 0:00:26]} 29. Rxc5 {[%emt 0:00:27]} bxc5 {[%emt 0:00:14]} 30. Nb3 {[%emt 0:00:34]} b6 {[%emt 0:04:39]} 31. Re2 {[%emt 0:00:29]} Rf4 {[%emt 0:02:58]} 32. Rd2 {[%emt 0:00:09]} Ne5 {[%emt 0:00:06]} 33. Nc1 {[%emt 0:00:52]} Rxa4 {[%emt 0:02:39]} 34. Ke2 {[%emt 0:00:10]} Rh4 {[%emt 0:01:22]} 35. b3 {[%emt 0:00:44]} a4 {[%emt 0:01:35]} 36. Rd6 {[%emt 0:00:34]} axb3 {[%emt 0:00:19]} 37. Nxb3 {[%emt 0:00:30]} Nc4 {[%emt 0:00:07]} 38. Rd7 {[%emt 0:00:17]} f6 {[%emt 0:00:25]} 39. Nd2 {[%emt 0:00:12]} Nxd2 {[%emt 0:04:25]} 40. Rxd2 {[%emt 0:00:02]} Rxh2 {[%emt 0:00:14]} 41. Rb2 {[%emt 0:00:09]} Rh4 {[%emt 0:00:40]} 42. Rxb6 {[%emt 0:00:16]} Rc4 {[%emt 0:00:28]} 43. Kd3 {[%emt 0:00:31]} Rf4 {[%emt 0:00:06]} 44. Ke3 {[%emt 0:01:10]} g5 {[%emt 0:00:06]} 45. Rb5 {[%emt 0:00:45]} Rf5 {[%emt 0:00:44]} 46. f4 {[%emt 0:00:58]} Rxf4 {[%emt 0:02:19]} 47. Rxc5 {[%emt 0:00:02]} h5 {[%emt 0:00:05]} 48. Rd5 {[%emt 0:01:05]} h4 {[%emt 0:00:22]} 49. f3 {[%emt 0:00:08]} Kg6 {[%emt 0:00:30]} 50. Rd8 {[%emt 0:00:30]} Kf5 {[%emt 0:00:42]} 51. Rc8 {[%emt 0:00:55]} Ra4 {[%emt 0:00:14]} 52. Rc5+ {[%emt 0:00:10]} Ke6 {[%emt 0:00:06]} 53. Rc6+ {[%emt 0:00:35]} Ke5 {[%emt 0:00:31]} 54. Rc5+ {[%emt 0:00:06]} Kd6 {[%emt 0:00:47]} 55. Rc8 {[%emt 0:00:06]} Kd5 {[%emt 0:01:06]} 56. Rf8 {[%emt 0:01:10]} Ke6 {[%emt 0:00:36]} 57. Rc8 {[%emt 0:00:43]} Ra5 {[%emt 0:01:28]} 58. c4 {[%emt 0:00:30]} Ra3+ {[%emt 0:00:43]} 59. Kf2 {[%emt 0:00:08]} Rc3 {[%emt 0:00:26]} 60. Re8+ {[%emt 0:00:24]} Kd6 {[%emt 0:00:45]} 61. Rd8+ {[%emt 0:01:07]} Ke7 {[%emt 0:00:47]} 62. Rc8 {[%emt 0:00:20]} f5 {[%emt 0:00:33]} 63. c5 {[%emt 0:00:37]} Kf6 {[%emt 0:01:53]} 64. f4 {[%emt 0:00:37]} g4 {[%emt 0:00:13]} 65. c6 {[%emt 0:00:10]} h3 {[%emt 0:00:56]} 66. Rh8 {[%emt 0:00:49]} g3+ {[%emt 0:00:40]} 67. Kf1 {[%emt 0:00:29]} g2+ {[%emt 0:00:11]} 68. Kf2 {[%emt 0:00:28]} Rc2+ {[%emt 0:00:04]} 0-1

[Event "1st Bangalore GM-Open-A 2024"]
[Site "Bangalore"]
[Date "2024.01.19"]
[Round "3.9"]
[White "Nitish Belurkar"]
[Black "Jaiveer Mahendru"]
[Result "1-0"]
[ECO "C83"]
[WhiteElo "2435"]
[BlackElo "2294"]
[Annotator "RC"]
[PlyCount "85"]
[EventDate "2024.01.20"]
[EventType "swiss"]
[EventCountry "IND"]
[SourceTitle "playchess.com"]
[Source "ChessBase"]
[SourceQuality "1"]
[TimeControl "5400+30"]

1. e4 {[%emt 0:02:26]} e5 {[%emt 0:01:30]} 2. Nf3 {[%emt 0:00:08]} Nc6 {[%emt 0:00:08]} 3. Bb5 {[%emt 0:00:05]} a6 {[%emt 0:00:04]} 4. Ba4 {[%emt 0:00:03]} Nf6 {[%emt 0:00:05]} 5. O-O {[%emt 0:00:12]} Nxe4 {[%emt 0:00:02]} 6. d4 {[%emt 0:03:33]} b5 {[%emt 0:00:05]} 7. Bb3 {[%emt 0:00:05]} d5 {[%emt 0:00:02]} 8. dxe5 {[%emt 0:00:05]} Be6 {[%emt 0:00:03]} 9. c3 {[%emt 0:00:58]} Be7 {[%emt 0:00:28]} 10. Nbd2 {[%emt 0:05:13]} Nc5 {[%emt 0:00:05]} 11. Bc2 {[%emt 0:03:41]} d4 {[%emt 0:02:09]} 12. cxd4 {[%emt 0:03:38]} Nxd4 {[%emt 0:00:07]} 13. Nxd4 {[%emt 0:00:22]} Qxd4 {[%emt 0:00:06]} 14. Nf3 {[%emt 0:00:11]} Qxd1 {[%emt 0:06:59]} 15. Rxd1 {[%emt 0:00:18]} O-O {[%emt 0:10:50]} 16. Nd4 {[%emt 0:04:27]} Bd7 {[%emt 0:16:09]} 17. Be3 {[%emt 0:05:59]} Rad8 {[%emt 0:09:17]} 18. Rac1 {[%emt 0:09:57]} Rfe8 {[%emt 0:16:10]} 19. f4 {[%emt 0:08:00]} Ne6 {[%emt 0:12:48]} 20. Bb3 {[%emt 0:04:42]} Nxd4 {[%emt 0:00:51]} 21. Rxd4 {[%emt 0:00:24]} c5 {[%emt 0:03:54]} 22. Rxd7 {[%emt 0:00:34]} Rxd7 {[%emt 0:00:01]} 23. e6 {[%emt 0:00:12]} Bd8 {[%emt 0:00:18]} 24. exf7+ {[%emt 0:00:27]} Rxf7 {[%emt 0:00:02]} 25. Bxc5 {[%emt 0:00:29]} g6 {[%emt 0:14:30]} 26. Rd1 {[%emt 0:00:27]} Kg7 {[%emt 0:00:48]} 27. Bxf7 {[%emt 0:00:03]} Kxf7 {[%emt 0:00:08]} 28. Rd7+ {[%emt 0:00:14]} Ke6 {[%emt 0:00:26]} 29. Rxh7 {[%emt 0:00:27]} Kd5 {[%emt 0:00:29]} 30. b4 {[%emt 0:02:01]} Ke4 {[%emt 0:03:10]} 31. Ra7 {[%emt 0:07:26]} Re6 {[%emt 0:03:07]} 32. Rd7 {[%emt 0:01:03]} Bb6 {[%emt 0:00:41]} 33. Rd4+ {[%emt 0:02:06]} Kf5 {[%emt 0:00:02]} 34. Bxb6 {[%emt 0:00:17]} Rxb6 {[%emt 0:00:02]} 35. h3 {[%emt 0:00:49]} Rc6 {[%emt 0:00:15]} 36. g4+ {[%emt 0:03:20]} Kf6 {[%emt 0:01:51]} 37. Kg2 {[%emt 0:00:26]} Rc2+ {[%emt 0:00:08]} 38. Kg3 {[%emt 0:00:07]} Rxa2 {[%emt 0:00:05]} 39. Rd6+ {[%emt 0:00:13]} Kf7 {[%emt 0:00:08]} 40. Kh4 {[%emt 0:00:10]} Ra4 {[%emt 0:01:08]} 41. Kg5 {[%emt 0:00:10]} Rxb4 {[%emt 0:00:20]} 42. Rf6+ {[%emt 0:00:25]} Ke7 {[%emt 0:01:17]} 43. Rxa6 {[%emt 0:00:08]} 1-0

[Event "1st Bangalore GM-Open-A 2024"]
[Site "Bangalore"]
[Date "2024.01.19"]
[Round "3.10"]
[White "Aakash Sharadchandra, Dalvi"]
[Black "Ilamparthi A R"]
[Result "1/2-1/2"]
[ECO "E94"]
[WhiteElo "2180"]
[BlackElo "2426"]
[Annotator "RC"]
[PlyCount "59"]
[EventDate "2024.01.20"]
[EventType "swiss"]
[EventCountry "IND"]
[SourceTitle "playchess.com"]
[Source "ChessBase"]
[SourceQuality "1"]
[TimeControl "5400+30"]

1. d4 {[%emt 0:00:02]} Nf6 {[%emt 0:03:28]} 2. c4 {[%emt 0:00:05]} g6 {[%emt 0:00:04]} 3. Nc3 {[%emt 0:00:05]} Bg7 {[%emt 0:00:03]} 4. e4 {[%emt 0:00:05]} d6 {[%emt 0:00:07]} 5. Nf3 {[%emt 0:00:04]} O-O {[%emt 0:00:07]} 6. Be2 {[%emt 0:00:04]} e5 {[%emt 0:00:05]} 7. O-O {[%emt 0:00:05]} Bg4 {[%emt 0:00:02]} 8. d5 {[%emt 0:01:19]} a5 {[%emt 0:00:10]} 9. Be3 {[%emt 0:01:13]} Nbd7 {[%emt 0:03:44]} 10. Ne1 {[%emt 0:01:44]} Bxe2 {[%emt 0:00:09]} 11. Qxe2 {[%emt 0:00:06]} Ne8 {[%emt 0:03:28]} 12. Nd3 {[%emt 0:01:29]} b6 {[%emt 0:01:40]} 13. f3 {[%emt 0:02:11]} f5 {[%emt 0:02:32]} 14. a3 {[%emt 0:01:36]} Nef6 {[%emt 0:04:52]} 15. b4 {[%emt 0:01:02]} Rf7 {[%emt 0:04:31]} 16. c5 {[%emt 0:01:50]} axb4 {[%emt 0:15:06]} 17. axb4 {[%emt 0:00:27]} Rxa1 {[%emt 0:00:07]} 18. Rxa1 {[%emt 0:00:04]} bxc5 {[%emt 0:00:07]} 19. bxc5 {[%emt 0:00:16]} fxe4 {[%emt 0:01:05]} 20. fxe4 {[%emt 0:00:22]} dxc5 {[%emt 0:02:13]} 21. Nxc5 {[%emt 0:12:33]} Nxc5 22. Bxc5 {[%emt 0:00:05]} Nh5 {[%emt 0:02:24]} 23. g3 {[%emt 0:08:12]} Qg5 {[%emt 0:04:02]} 24. Be3 {[%emt 0:03:39]} Nf4 {[%emt 0:05:26]} 25. Qd2 {[%emt 0:01:09]} Qg4 {[%emt 0:02:32]} 26. Qd1 {[%emt 0:06:49]} Qh3 {[%emt 0:02:43]} 27. Qf1 {[%emt 0:03:01]} Qg4 {[%emt 0:00:07]} 28. Qd1 {[%emt 0:00:22]} Qh3 {[%emt 0:00:06]} 29. Qf1 {[%emt 0:00:07]} Qg4 {[%emt 0:00:03]} 30. Qd1 {[%emt 0:00:39]} 1/2-1/2

[Event "1st Bangalore GM-Open-A 2024"]
[Site "Bangalore"]
[Date "2024.01.19"]
[Round "3.11"]
[White "Tahbaz, Arash"]
[Black "Dere Pushkar"]
[Result "1/2-1/2"]
[ECO "A07"]
[WhiteElo "2425"]
[BlackElo "2191"]
[Annotator "RC"]
[PlyCount "100"]
[EventDate "2024.01.20"]
[EventType "swiss"]
[EventCountry "IND"]
[SourceTitle "playchess.com"]
[Source "ChessBase"]
[SourceQuality "1"]
[TimeControl "5400+30"]

1. Nf3 {[%emt 0:00:15]} d5 {[%emt 0:00:07]} 2. g3 {[%emt 0:00:22]} g6 {[%emt 0:00:05]} 3. Bg2 {[%emt 0:00:06]} Bg7 {[%emt 0:00:10]} 4. O-O {[%emt 0:00:07]} e5 {[%emt 0:00:07]} 5. d3 {[%emt 0:00:05]} Nc6 {[%emt 0:00:10]} 6. Nbd2 {[%emt 0:00:06]} Nge7 {[%emt 0:00:14]} 7. e4 {[%emt 0:00:05]} O-O {[%emt 0:00:43]} 8. b3 {[%emt 0:00:05]} h6 {[%emt 0:07:47]} 9. Bb2 {[%emt 0:00:10]} d4 {[%emt 0:01:31]} 10. Qe2 {[%emt 0:02:05]} g5 {[%emt 0:02:09]} 11. h4 {[%emt 0:02:00]} Bg4 {[%emt 0:04:03]} 12. hxg5 {[%emt 0:04:18]} hxg5 {[%emt 0:00:26]} 13. Ba3 {[%emt 0:15:35]} Qd7 {[%emt 0:08:20]} 14. Qe1 {[%emt 0:00:51]} f6 {[%emt 0:05:17]} 15. Nh2 {[%emt 0:00:08]} Bh3 {[%emt 0:00:51]} 16. Qe2 {[%emt 0:01:03]} a5 {[%emt 0:05:22]} 17. Bxe7 {[%emt 0:23:20]} Nxe7 {[%emt 0:01:39]} 18. a4 {[%emt 0:00:44]} Ng6 {[%emt 0:04:04]} 19. Qh5 {[%emt 0:02:50]} Bxg2 {[%emt 0:00:13]} 20. Kxg2 {[%emt 0:00:03]} Kf7 {[%emt 0:00:26]} 21. Qf3 {[%emt 0:00:16]} Rh8 {[%emt 0:00:53]} 22. Ng4 {[%emt 0:00:09]} Rh4 {[%emt 0:01:56]} 23. Qf5 {[%emt 0:00:27]} Nf4+ {[%emt 0:12:40]} 24. Kf3 {[%emt 0:01:00]} Qxf5 {[%emt 0:00:21]} 25. exf5 {[%emt 0:00:06]} Rh3 {[%emt 0:00:18]} 26. Ke4 {[%emt 0:00:31]} Ne2 {[%emt 0:01:14]} 27. Kf3 {[%emt 0:04:13]} Nc3 {[%emt 0:00:22]} 28. Rh1 {[%emt 0:07:50]} Rxh1 {[%emt 0:05:00]} 29. Rxh1 {[%emt 0:00:05]} Rh8 {[%emt 0:00:27]} 30. Rxh8 {[%emt 0:04:31]} Bxh8 {[%emt 0:00:09]} 31. Ne4 {[%emt 0:00:23]} Nd5 {[%emt 0:00:50]} 32. Nc5 {[%emt 0:01:29]} b6 {[%emt 0:01:07]} 33. Ne6 {[%emt 0:00:10]} Bg7 {[%emt 0:09:13]} 34. Ke4 {[%emt 0:01:37]} Nc3+ {[%emt 0:02:24]} 35. Kf3 {[%emt 0:00:04]} Nd5 {[%emt 0:00:03]} 36. Ke2 {[%emt 0:01:12]} Bf8 {[%emt 0:00:34]} 37. f4 {[%emt 0:11:01]} gxf4 {[%emt 0:07:55]} 38. gxf4 {[%emt 0:00:04]} Bd6 {[%emt 0:07:24]} 39. fxe5 {[%emt 0:01:45]} Bxe5 {[%emt 0:00:04]} 40. Kf3 {[%emt 0:02:27]} Ke7 {[%emt 0:01:25]} 41. Nxe5 {[%emt 0:07:33]} fxe5 {[%emt 0:00:07]} 42. Ke4 {[%emt 0:00:12]} Kd6 {[%emt 0:00:14]} 43. Ng5 {[%emt 0:00:12]} Nc3+ {[%emt 0:02:16]} 44. Kf3 {[%emt 0:00:02]} Ke7 {[%emt 0:00:59]} 45. Ne4 {[%emt 0:01:04]} c6 {[%emt 0:05:30]} 46. Kg4 {[%emt 0:10:14]} Nxe4 {[%emt 0:01:12]} 47. dxe4 {[%emt 0:00:03]} b5 {[%emt 0:00:18]} 48. Kf3 {[%emt 0:00:34]} bxa4 {[%emt 0:00:07]} 49. bxa4 {[%emt 0:00:08]} c5 {[%emt 0:00:03]} 50. c4 {[%emt 0:00:53]} Kf6 {[%emt 0:00:06]} 1/2-1/2

[Event "1st Bangalore GM-Open-A 2024"]
[Site "Bangalore"]
[Date "2024.01.19"]
[Round "3.12"]
[White "Sarwat, Walaa"]
[Black "Deepan Chakkravarthy J."]
[Result "1/2-1/2"]
[ECO "C84"]
[WhiteElo "2175"]
[BlackElo "2422"]
[Annotator "RC"]
[PlyCount "94"]
[EventDate "2024.01.20"]
[EventType "swiss"]
[EventCountry "IND"]
[SourceTitle "playchess.com"]
[Source "ChessBase"]
[SourceQuality "1"]
[TimeControl "5400+30"]

1. e4 {[%emt 0:00:14]} e5 {[%emt 0:00:12]} 2. Nf3 {[%emt 0:00:19]} Nc6 {[%emt 0:00:05]} 3. Bb5 {[%emt 0:00:26]} a6 {[%emt 0:00:05]} 4. Ba4 {[%emt 0:00:25]} Nf6 {[%emt 0:00:06]} 5. d3 {[%emt 0:00:15]} b5 {[%emt 0:00:38]} 6. Bb3 {[%emt 0:00:09]} Be7 {[%emt 0:00:06]} 7. O-O {[%emt 0:00:55]} d6 {[%emt 0:00:14]} 8. a4 {[%emt 0:05:40]} b4 {[%emt 0:00:17]} 9. a5 {[%emt 0:01:02]} O-O {[%emt 0:00:07]} 10. h3 {[%emt 0:02:24]} Rb8 {[%emt 0:00:57]} 11. Nbd2 {[%emt 0:02:27]} Nd7 {[%emt 0:01:15]} 12. Bd5 {[%emt 0:01:17]} Na7 {[%emt 0:00:36]} 13. c3 {[%emt 0:02:12]} c6 {[%emt 0:04:54]} 14. Bc4 {[%emt 0:02:05]} Nc5 {[%emt 0:07:03]} 15. d4 {[%emt 0:04:04]} exd4 {[%emt 0:01:04]} 16. cxd4 {[%emt 0:00:52]} Ne6 {[%emt 0:05:08]} 17. d5 {[%emt 0:02:39]} Nc5 {[%emt 0:04:28]} 18. Nd4 {[%emt 0:02:41]} cxd5 {[%emt 0:00:25]} 19. exd5 {[%emt 0:01:47]} Bd7 {[%emt 0:02:42]} 20. N2b3 {[%emt 0:02:06]} Bf6 {[%emt 0:04:06]} 21. Nxc5 {[%emt 0:14:59]} dxc5 {[%emt 0:00:12]} 22. Nb3 {[%emt 0:00:47]} Bb5 {[%emt 0:00:43]} 23. Qc2 {[%emt 0:00:36]} Rc8 {[%emt 0:02:03]} 24. Be3 {[%emt 0:01:40]} Bd4 {[%emt 0:06:54]} 25. Rad1 {[%emt 0:01:27]} Bxc4 {[%emt 0:19:28]} 26. Qxc4 {[%emt 0:00:20]} Bxe3 {[%emt 0:00:02]} 27. fxe3 {[%emt 0:00:24]} Nb5 {[%emt 0:00:03]} 28. Rfe1 {[%emt 0:04:53]} Qd6 {[%emt 0:06:49]} 29. Rc1 {[%emt 0:07:43]} Qe5 {[%emt 0:00:54]} 30. Re2 {[%emt 0:05:37]} Rfd8 {[%emt 0:08:23]} 31. Rd1 {[%emt 0:07:49]} Nd6 {[%emt 0:06:15]} 32. Qxa6 {[%emt 0:06:13]} c4 {[%emt 0:00:07]} 33. Nd4 {[%emt 0:01:10]} Qxd5 {[%emt 0:00:05]} 34. Ree1 {[%emt 0:01:37]} c3 {[%emt 0:10:49]} 35. bxc3 {[%emt 0:00:55]} bxc3 {[%emt 0:00:02]} 36. Nc2 {[%emt 0:04:11]} Qc5 {[%emt 0:00:32]} 37. Qb6 {[%emt 0:01:59]} Kf8 {[%emt 0:03:32]} 38. Qxc5 {[%emt 0:05:55]} Rxc5 {[%emt 0:00:02]} 39. a6 {[%emt 0:00:16]} Ke7 {[%emt 0:03:33]} 40. Rd3 {[%emt 0:01:09]} Ra8 {[%emt 0:01:12]} 41. Ra1 {[%emt 0:00:51]} f5 {[%emt 0:00:52]} 42. Nb4 {[%emt 0:01:02]} Ke6 {[%emt 0:02:40]} 43. Rad1 {[%emt 0:01:58]} Nb5 {[%emt 0:00:56]} 44. Rb1 {[%emt 0:03:01]} Nc7 {[%emt 0:00:28]} 45. Rc1 {[%emt 0:00:33]} Nb5 {[%emt 0:01:20]} 46. Rb1 {[%emt 0:00:05]} Nc7 {[%emt 0:00:30]} 47. Rc1 {[%emt 0:00:11]} Nb5 {[%emt 0:00:21]} 1/2-1/2

[Event "1st Bangalore GM-Open-A 2024"]
[Site "Bangalore"]
[Date "2024.01.19"]
[Round "3.13"]
[White "Viani Antonio Dcunha"]
[Black "Nithin Babu"]
[Result "1-0"]
[ECO "E94"]
[WhiteElo "2407"]
[BlackElo "2177"]
[Annotator "RC"]
[PlyCount "161"]
[EventDate "2024.01.20"]
[EventType "swiss"]
[EventCountry "IND"]
[SourceTitle "playchess.com"]
[Source "ChessBase"]
[SourceQuality "1"]
[TimeControl "5400+30"]

1. d4 {[%emt 0:00:28]} Nf6 {[%emt 0:05:34]} 2. c4 {[%emt 0:00:11]} g6 {[%emt 0:00:06]} 3. Nc3 {[%emt 0:00:05]} Bg7 {[%emt 0:00:05]} 4. e4 {[%emt 0:00:06]} d6 {[%emt 0:00:04]} 5. Be2 {[%emt 0:00:08]} O-O {[%emt 0:00:11]} 6. Nf3 {[%emt 0:00:11]} Nbd7 {[%emt 0:00:13]} 7. O-O {[%emt 0:00:25]} e5 {[%emt 0:00:11]} 8. Be3 {[%emt 0:00:19]} Qe7 {[%emt 0:01:25]} 9. Qc2 {[%emt 0:00:54]} c6 {[%emt 0:01:41]} 10. d5 {[%emt 0:03:47]} c5 {[%emt 0:00:43]} 11. Rae1 {[%emt 0:02:28]} Nh5 {[%emt 0:07:41]} 12. Qc1 {[%emt 0:06:06]} Ndf6 {[%emt 0:06:50]} 13. Bg5 {[%emt 0:09:35]} Bd7 {[%emt 0:07:26]} 14. h3 {[%emt 0:04:52]} Rfe8 {[%emt 0:11:11]} 15. Bd1 {[%emt 0:10:01]} Qf8 {[%emt 0:02:47]} 16. g4 {[%emt 0:04:05]} h6 {[%emt 0:05:14]} 17. Bd2 {[%emt 0:00:52]} Nf4 {[%emt 0:01:57]} 18. Bxf4 {[%emt 0:00:15]} exf4 {[%emt 0:00:03]} 19. Qxf4 {[%emt 0:00:09]} Nh7 {[%emt 0:03:13]} 20. e5 {[%emt 0:13:48]} Ng5 {[%emt 0:04:53]} 21. Nxg5 {[%emt 0:00:14]} hxg5 {[%emt 0:00:40]} 22. Qxg5 {[%emt 0:00:05]} Bxe5 {[%emt 0:01:50]} 23. Ne4 {[%emt 0:00:52]} Bxb2 {[%emt 0:06:12]} 24. h4 {[%emt 0:07:42]} Bg7 {[%emt 0:03:45]} 25. h5 {[%emt 0:09:36]} f5 {[%emt 0:09:23]} 26. Ng3 {[%emt 0:01:39]} Qf6 {[%emt 0:01:38]} 27. Qxf6 {[%emt 0:07:12]} Bxf6 {[%emt 0:00:02]} 28. gxf5 {[%emt 0:02:45]} gxf5 {[%emt 0:01:36]} 29. Bc2 {[%emt 0:01:51]} f4 {[%emt 0:00:49]} 30. Ne4 {[%emt 0:00:56]} Be5 {[%emt 0:01:02]} 31. Kh1 {[%emt 0:00:26]} Kh8 {[%emt 0:02:31]} 32. Rg1 {[%emt 0:02:34]} Rg8 {[%emt 0:06:23]} 33. Ng5 {[%emt 0:07:10]} Raf8 {[%emt 0:00:52]} 34. Bg6 {[%emt 0:00:03]} Rg7 {[%emt 0:04:36]} 35. Ne6 {[%emt 0:00:02]} Bxe6 {[%emt 0:00:39]} 36. dxe6 {[%emt 0:00:02]} f3 {[%emt 0:01:12]} 37. Re4 {[%emt 0:07:33]} Rf6 {[%emt 0:02:35]} 38. Bf7 {[%emt 0:00:00]} Rfxf7 {[%emt 0:00:51]} 39. exf7 {[%emt 0:00:00]} Rxf7 {[%emt 0:00:09]} 40. Rg5 {[%emt 0:00:00]} Kh7 {[%emt 0:01:12]} 41. Kg1 {[%emt 0:00:37]} a6 {[%emt 0:00:20]} 42. a4 {[%emt 0:00:20]} b5 {[%emt 0:00:10]} 43. cxb5 {[%emt 0:00:42]} axb5 {[%emt 0:00:02]} 44. axb5 {[%emt 0:00:13]} Rb7 {[%emt 0:00:16]} 45. Rf5 {[%emt 0:00:27]} Rxb5 {[%emt 0:01:01]} 46. Rxf3 {[%emt 0:00:01]} Kh6 {[%emt 0:00:24]} 47. Rg4 {[%emt 0:01:18]} Kxh5 {[%emt 0:01:13]} 48. Rg8 {[%emt 0:00:04]} Rb4 {[%emt 0:00:18]} 49. Rh3+ {[%emt 0:00:43]} Rh4 {[%emt 0:00:01]} 50. Rxh4+ {[%emt 0:00:09]} Kxh4 {[%emt 0:00:02]} 51. Kg2 {[%emt 0:00:17]} c4 {[%emt 0:00:57]} 52. Kf3 {[%emt 0:00:03]} d5 {[%emt 0:01:22]} 53. Rc8 {[%emt 0:01:39]} c3 {[%emt 0:00:35]} 54. Rc5 {[%emt 0:00:02]} Kg5 {[%emt 0:00:45]} 55. Rxd5 {[%emt 0:00:01]} Kf5 {[%emt 0:00:12]} 56. Rc5 {[%emt 0:00:03]} Ke6 {[%emt 0:00:30]} 57. Ke4 {[%emt 0:00:01]} Kd6 {[%emt 0:00:44]} 58. Rc8 {[%emt 0:02:04]} Bf6 {[%emt 0:00:25]} 59. Rc4 {[%emt 0:00:47]} Bg7 {[%emt 0:00:28]} 60. Ra4 {[%emt 0:00:39]} Kc5 {[%emt 0:00:27]} 61. Kd3 {[%emt 0:00:03]} Kd5 {[%emt 0:00:11]} 62. Re4 {[%emt 0:00:44]} Be5 {[%emt 0:00:57]} 63. Re2 {[%emt 0:00:03]} Bf6 {[%emt 0:00:28]} 64. f4 {[%emt 0:00:18]} Kd6 {[%emt 0:00:34]} 65. f5 {[%emt 0:00:22]} Be5 {[%emt 0:00:17]} 66. Kc4 {[%emt 0:00:02]} Bg7 {[%emt 0:00:21]} 67. Re6+ {[%emt 0:00:03]} Kd7 {[%emt 0:00:09]} 68. Kd5 {[%emt 0:00:26]} Bf8 {[%emt 0:00:51]} 69. Rc6 {[%emt 0:00:59]} Bg7 {[%emt 0:00:49]} 70. f6 {[%emt 0:02:01]} Bh8 {[%emt 0:00:05]} 71. Rd6+ {[%emt 0:00:28]} Kc7 {[%emt 0:00:30]} 72. Rc6+ {[%emt 0:00:18]} Kd7 {[%emt 0:00:26]} 73. Rd6+ {[%emt 0:00:20]} Kc7 {[%emt 0:00:36]} 74. f7 {[%emt 0:00:08]} Bg7 {[%emt 0:00:49]} 75. Rg6 {[%emt 0:00:51]} Bf8 {[%emt 0:00:30]} 76. Ke6 {[%emt 0:00:32]} c2 {[%emt 0:00:40]} 77. Rg1 {[%emt 0:00:02]} Ba3 {[%emt 0:00:30]} 78. Rc1 {[%emt 0:00:08]} Bxc1 {[%emt 0:00:20]} 79. f8=Q {[%emt 0:00:06]} Be3 {[%emt 0:00:20]} 80. Qd6+ {[%emt 0:00:14]} Kb7 {[%emt 0:00:08]} 81. Qb4+ {[%emt 0:00:06]} 1-0

[Event "1st Bangalore GM-Open-A 2024"]
[Site "Bangalore"]
[Date "2024.01.19"]
[Round "3.14"]
[White "Tologon tegin, Semetei"]
[Black "Dhananjay S"]
[Result "1/2-1/2"]
[ECO "A11"]
[WhiteElo "2384"]
[BlackElo "2151"]
[Annotator "RC"]
[PlyCount "84"]
[EventDate "2024.01.20"]
[EventType "swiss"]
[EventCountry "IND"]
[SourceTitle "playchess.com"]
[Source "ChessBase"]
[SourceQuality "1"]
[TimeControl "5400+30"]

1. Nf3 {[%emt 0:00:02]} Nf6 {[%emt 0:00:32]} 2. e3 {[%emt 0:00:10]} d5 {[%emt 0:00:35]} 3. c4 {[%emt 0:00:10]} e6 {[%emt 0:00:27]} 4. b3 {[%emt 0:00:09]} c6 {[%emt 0:00:12]} 5. Bb2 {[%emt 0:00:09]} Bd6 {[%emt 0:00:06]} 6. Nc3 {[%emt 0:00:12]} O-O {[%emt 0:00:24]} 7. d4 {[%emt 0:00:11]} b6 {[%emt 0:02:29]} 8. Bd3 {[%emt 0:01:44]} Nbd7 {[%emt 0:00:20]} 9. O-O {[%emt 0:00:13]} Bb7 {[%emt 0:00:03]} 10. Qe2 {[%emt 0:03:46]} Re8 {[%emt 0:00:37]} 11. Rad1 {[%emt 0:08:16]} Qe7 {[%emt 0:03:18]} 12. Rfe1 {[%emt 0:06:49]} Rad8 {[%emt 0:00:54]} 13. e4 {[%emt 0:01:38]} dxe4 {[%emt 0:00:07]} 14. Nxe4 {[%emt 0:00:03]} Nxe4 {[%emt 0:00:06]} 15. Qxe4 {[%emt 0:01:00]} Nf6 {[%emt 0:01:22]} 16. Qh4 {[%emt 0:00:33]} h6 {[%emt 0:01:55]} 17. Re3 {[%emt 0:09:01]} Nd7 {[%emt 0:06:48]} 18. Qh3 {[%emt 0:06:52]} Qf8 {[%emt 0:24:23]} 19. Rde1 {[%emt 0:29:31]} Bb4 {[%emt 0:10:41]} 20. R1e2 {[%emt 0:00:21]} Ba3 {[%emt 0:00:19]} 21. Bc3 {[%emt 0:08:38]} Bc1 {[%emt 0:04:06]} 22. Bd2 {[%emt 0:00:04]} Bxd2 {[%emt 0:00:22]} 23. Rxd2 {[%emt 0:00:10]} Qa3 {[%emt 0:01:24]} 24. Re1 {[%emt 0:06:19]} Nf6 {[%emt 0:02:06]} 25. Red1 {[%emt 0:00:13]} c5 {[%emt 0:02:06]} 26. dxc5 {[%emt 0:00:05]} bxc5 {[%emt 0:00:08]} 27. Ne1 {[%emt 0:07:05]} Qa5 {[%emt 0:10:05]} 28. Qe3 {[%emt 0:00:05]} Kf8 {[%emt 0:02:30]} 29. Bb1 {[%emt 0:07:16]} Ke7 {[%emt 0:01:01]} 30. f3 {[%emt 0:00:03]} Rxd2 {[%emt 0:02:47]} 31. Rxd2 {[%emt 0:00:04]} Rd8 {[%emt 0:00:09]} 32. Nd3 {[%emt 0:00:22]} Rd6 {[%emt 0:00:41]} 33. Kf1 {[%emt 0:01:42]} Nd7 {[%emt 0:01:00]} 34. Ke2 {[%emt 0:00:04]} Qc3 {[%emt 0:02:05]} 35. Rc2 {[%emt 0:00:47]} Qa5 {[%emt 0:04:12]} 36. Rc1 {[%emt 0:00:05]} Qc7 {[%emt 0:01:35]} 37. h3 {[%emt 0:00:03]} a5 {[%emt 0:02:10]} 38. Bc2 {[%emt 0:00:23]} Rd4 {[%emt 0:00:42]} 39. Rd1 {[%emt 0:00:10]} e5 {[%emt 0:02:39]} 40. Nf2 {[%emt 0:03:36]} Nf6 {[%emt 0:01:05]} 41. Nd3 {[%emt 0:01:29]} Nd7 {[%emt 0:00:09]} 42. Nf2 {[%emt 0:00:58]} Nf8 {[%emt 0:02:54]} 1/2-1/2